Cogmind - Beta 17.1 @@@ ROGUE MODE // 2026.08.24 @ 20:13:06 Player: kite Result: Self-destructed Performance ------------- Evolutions (7) 3500 Regions Visited (20) 4000 Robots Destroyed (258) 1290 Value Destroyed (9747) 9747 Prototype IDs (30) 600 Alien Tech Used (0) 0 Bonus (3850) 3850 TOTAL SCORE: 22987 Bonus ------- High Alert Combat Kills 991 Follower Combat Kills 3488 Awakened Behemoth Slayer 1000 Entered DSFs 500 Network Hubs Disabled 400 Met Data Miner 300 Met Imprinter 300 Was Imprinted 300 MAIN.C Attacked Proxy Base 500 Built Enhanced Grunts 300 Met R17 at Cetus 500 Friendly Fire -4729 Cogmind --------- Core Integrity 652/1300 Matter 187/300 Energy 544/600 System Corruption 10% Temperature Cool (45) Movement Treading (245) Ox1 Location -3/Research Parts ------- > --- POWER (2) -------- Reinforced Quantum Reactor Reinforced Quantum Reactor > --- PROPULSION (7) --- Improved Heavy Treads Armored Heavy Treads > --- UTILITY (9) ------ Cargo Storage Unit Experimental Signal Interpreter Experimental Melee Analysis Suite Core Analyzer Advanced Actuator Array Improved Transmission Jammer Centrium Light Armor Plating > --- WEAPON (3) ------- Tesla Bomb Launcher Makeshift Sword Plasma Lance > --- INVENTORY (30) --- Light Antimatter Reactor Light Antimatter Reactor Light Particle Reactor Reinforced Quantum Reactor Reinforced Quantum Reactor Cargo Storage Unit Structural Scanner Improved Sensor Array Improved Sensor Array Quantum Capacitor Improved Core Shielding Graphene Brace Advanced Drone Bay (0/2) Compact HERF Cannon Nova Cannon Enhanced Force Lance CR-A16's Behemoth Slayer Peak State ------------ > --- POWER ------------ Antimatter Reactor Compact Particle Reactor > --- PROPULSION ------- Advanced Medium Treads Armored Heavy Treads Centrium Heavy Treads Centrium Heavy Treads > --- UTILITY ---------- Cargo Storage Unit Experimental Signal Interpreter Advanced Melee Analysis Suite Core Analyzer Zionite Weapon Casing Centrium Light Armor Plating Medium Regenerative Plating Graphene Brace > --- WEAPON ----------- Phasing Sabre Plasma Lance CR-A16's Behemoth Slayer > --- INVENTORY -------- Improved Heavy Treads Improved Heavy Treads Armored Heavy Treads Armored Heavy Treads Armored Heavy Treads Armored Heavy Treads Armored Heavy Treads Improved Sensor Array Improved Sensor Array Experimental Melee Analysis Suite Advanced Actuator Array Advanced Force Booster Improved Transmission Jammer Centrium Medium Armor Plating Improved Hacking Suite Advanced System Shield Authchip [Processor] Advanced Corruption Screen Advanced Drone Bay Tesla Bomb Launcher Makeshift Sword Enhanced Force Lance [Rating: 166] Favorites ----------- Power Ion Engine Engine Ion Engine Power Core Neutrino Core Reactor Compact Particle Reactor Propulsion Light Treads Treads Light Treads Leg Aluminum Leg Wheel Wheel Utility Huge Storage Unit Device Improved Sensor Array Storage Huge Storage Unit Processor Core Analyzer Hackware Improved Hacking Suite Protection Medium Regenerative Plating Weapon Heavy Hammer Energy Gun Small Laser Energy Cannon HERF Cannon Ballistic Gun Light Assault Rifle Launcher Tesla Bomb Launcher Special Weapon Remote Datajack Impact Weapon Heavy Hammer Slashing Weapon Phasing Sabre Piercing Weapon Heavy Pick Build | -11 -10 -10 -9 -9 -7 -6 -6 -6 -6 -5 -5 -5 -5 -5 -5 -4 -4 -4 -4 -3 ------- Run | Yrd Mat Min Mat Min Zio Pro Fac Low Dat Pro Fac Ext Cet Arc Hub Fac Was Fac DSF Res Slots Evolved 14 | . . . 2 . . . 6 . . . 2 . . . . 2 . . . 2 Power 1 | . . . . . . . . . . . 1 . . . . . . . . . Propulsion 5 | . . . 2 . . . 2 . . . . . . . . . . . . 1 Utility 7 | . . . . . . . 4 . . . 1 . . . . 2 . . . . Weapon 1 | . . . . . . . . . . . . . . . . . . . . 1 Parts Attached 238 | 9 7 5 17 . 8 9 18 1 . 34 18 18 14 9 2 12 12 2 17 26 Power 27 | 1 . 1 3 . . 2 . . . 3 5 1 2 . . 1 2 . . 6 Engine 12 | 1 . 1 3 . . 1 . . . 2 2 . . . . . . . . 2 Core 4 | . . . . . . . . . . 1 2 1 . . . . . . . . Reactor 11 | . . . . . . 1 . . . . 1 . 2 . . 1 2 . . 4 Propulsion 73 | 3 4 2 5 . 4 6 4 . . 10 2 10 1 4 . 2 3 . 8 5 Treads 64 | 2 . . 4 . 4 6 4 . . 10 1 10 1 4 . 2 3 . 8 5 Leg 3 | 1 . . 1 . . . . . . . 1 . . . . . . . . . Wheel 6 | . 4 2 . . . . . . . . . . . . . . . . . . Hover . | . . . . . . . . . . . . . . . . . . . . . Flight . | . . . . . . . . . . . . . . . . . . . . . Utility 101 | 3 1 1 4 . 2 1 9 1 . 15 10 4 8 5 2 6 5 2 8 14 Device 39 | 2 . 1 . . 1 . 3 1 . 6 5 1 2 4 1 3 3 . . 6 Storage 8 | 1 1 . . . . 1 . . . . 1 . . . 1 1 1 1 . . Processor 14 | . . . . . 1 . 2 . . 5 1 . . . . 1 . . 2 2 Hackware 11 | . . . . . . . 1 . . . . . 1 1 . 1 . 1 3 3 Protection 29 | . . . 4 . . . 3 . . 4 3 3 5 . . . 1 . 3 3 Artifact . | . . . . . . . . . . . . . . . . . . . . . Weapon 37 | 2 2 1 5 . 2 . 5 . . 6 1 3 3 . . 3 2 . 1 1 Energy Gun 1 | . 1 . . . . . . . . . . . . . . . . . . . Energy Cannon 1 | . . . . . . . . . . . . . 1 . . . . . . . Ballistic Gun 7 | 2 . . 4 . . . . . . . . . . . . . 1 . . . Ballistic Cannon . | . . . . . . . . . . . . . . . . . . . . . Launcher 4 | . . 1 . . . . . . . . 1 . . . . . 1 . 1 . Special Weapon 5 | . . . . . . . 1 . . 2 . . 1 . . 1 . . . . Impact Weapon 5 | . . . 1 . 2 . 2 . . . . . . . . . . . . . Slashing Weapon 8 | . 1 . . . . . . . . 3 . 2 1 . . 1 . . . . Piercing Weapon 6 | . . . . . . . 2 . . 1 . 1 . . . 1 . . . 1 Special Melee Weapon . | . . . . . . . . . . . . . . . . . . . . . Unidentified Prototypes 20 | . . . 1 . 2 . . . . 2 5 . 5 . . 1 3 . 1 . Corrupted Parts 6 | . . . . . . 4 . . . 1 . . . 1 . . . . . . System Corruption 25 | . . . . . . 15 . . . 6 . . . 4 . . . . . . Parts Lost 43 | . 3 1 8 . 1 . 7 . . 2 2 2 . . . . . . . 17 Power 7 | . . 1 2 . . . . . . . 1 . . . . . . . . 3 Propulsion 22 | . . . 4 . 1 . 4 . . 1 1 2 . . . . . . . 9 Utility 11 | . 2 . 2 . . . 2 . . 1 . . . . . . . . . 4 Weapon 3 | . 1 . . . . . 1 . . . . . . . . . . . . 1 Highest Loss Streak 4 | . 1 1 2 . 1 . 2 . . 2 1 1 . . . . . . . 4 To Critical Strikes 2 | . . . . . . . . . . . . . . . . . . . . 2 Average Backups 22 | 2 9 11 20 24 24 24 22 24 24 23 24 23 23 22 23 22 22 21 22 19 Power . | . 1 1 . . . . . 1 1 . . . . . . . 1 1 . 1 Propulsion 4 | 1 2 5 6 5 4 8 4 2 2 4 4 4 5 4 5 4 3 4 8 4 Utility 11 | . 2 3 8 13 14 11 9 12 12 9 11 11 12 13 14 12 11 11 10 9 Weapon 5 | . 2 2 5 5 4 4 5 7 7 6 6 6 5 4 4 4 5 5 3 3 Tool/Special . | . . . . . . . . . . . . . . . . . . . . . Unused Backups 83 | . 1 . 9 . 8 5 2 . . 15 5 2 2 2 . 1 2 . 16 13 Power 9 | . . . . . . . . . . 1 . . 1 . . . . . . 7 Propulsion 14 | . . . . . . 1 . . . 2 . . . 1 . . 1 . 9 . Utility 40 | . 1 . . . 8 4 . . . 7 4 1 1 1 . . 1 . 7 5 Weapon 20 | . . . 9 . . . 2 . . 5 1 1 . . . 1 . . . 1 Tool/Special . | . . . . . . . . . . . . . . . . . . . . . Average Slot Usage (%) 94 | . 96 96 92 100 100 99 92 93 93 98 94 99 98 97 100 99 91 79 77 75 Engine 5 | . 14 11 7 11 11 10 6 6 6 4 6 . . . . . . . . . Reactor 3 | . . . . . . . . . . . 1 5 7 11 11 10 9 10 10 8 Treads 33 | . 16 . 15 44 44 43 39 40 40 40 32 34 34 33 35 31 22 15 14 15 Wheel 1 | . 11 28 21 . . . . . . . . . . . . . . . . . Device 6 | . 10 13 4 . . . 5 6 6 7 6 11 10 11 11 12 7 11 5 7 Storage 7 | . 14 14 11 11 11 11 6 6 6 6 5 5 5 5 5 5 5 5 5 4 Processor 13 | . . . . . 7 11 13 13 13 17 17 17 17 17 17 18 17 15 15 17 Protection 5 | . . . 5 11 3 . 5 6 6 5 5 5 4 3 5 8 9 5 11 5 Ballistic Gun 1 | . 26 14 10 . . . . . . . . . . . . . . . . . Impact Weapon 6 | . . . 5 11 18 22 10 6 6 2 . . . . . . . . . . Slashing Weapon 4 | . . . 5 11 3 . . . . 5 5 7 8 11 10 8 3 5 4 4 Piercing Weapon 2 | . . . . . . . 2 6 6 4 4 1 . . . 1 5 5 5 8 Peak Build Rating 166 | 7 8 10 17 16 32 40 74 76 75 78 88 88 101 110 99 116 133 131 148 166 Average Rating 72 | 5 7 9 14 16 24 33 63 75 75 71 83 85 91 99 97 110 123 124 138 149 On Entrance 66 | . 7 7 10 16 16 32 36 74 75 75 75 86 87 95 96 96 116 131 124 147 Avg Prop Armor Cover (%) 7 | 9 . . 13 . . 8 . . . . 3 . . . . . . . . . Naked Turns . | . . . . . . . . . . . . . . . . . . . . . Heaviest Build 230 | 14 89 88 96 94 95 99 115 120 115 116 126 131 143 125 123 140 142 192 192 230 Greatest Support 250 | 40 40 26 80 80 88 88 138 138 138 157 149 150 153 187 158 163 210 210 225 250 Greatest Overweight (x) 8 | . 8 4 5 1 1 1 1 . . . 1 1 1 . . . . . 1 1 Average Overweight (x) . | . 1 3 1 1 1 1 . . . . . . . . . . . . . . Largest Inventory Capacity 30 | 8 25 25 25 25 25 25 25 25 25 25 25 25 25 25 25 25 25 30 30 30 Average Capacity 25 | 7 20 25 25 25 25 25 25 25 25 25 25 25 25 25 25 25 25 26 30 30 Most Carried 30 | 5 12 13 25 24 25 25 25 25 25 25 25 25 25 25 25 25 25 26 30 30 Average Carried 24 | 2 9 11 20 24 24 24 24 24 25 24 24 24 24 24 25 24 24 25 29 25 Final Capacity 30 | 8 25 25 25 25 25 25 25 25 25 25 25 25 25 25 25 25 25 30 30 30 Final Carried 30 | 5 11 13 24 24 25 25 25 25 25 25 25 25 25 25 25 25 25 26 30 20 Class Distribution -------------------- 62% | Scavenger-Gladiator 16% | Scavenger-Mutant 9% | Hauler-Gladiator 4% | Commander-Gladiator 4% | Mutant Dominant Class ---------------- Mutant | -10/Materials Mutant | -10/Mines Scavenger-Mutant | -9/Materials Scavenger-Mutant | -9/Mines Scavenger-Gladiator | -7/Zion Scavenger-Gladiator | -6/Proximity Caves Scavenger-Gladiator | -6/Factory Scavenger-Gladiator | -6/Lower Caves Scavenger-Gladiator | -6/Data Miner Scavenger-Gladiator | -5/Proximity Caves Scavenger-Gladiator | -5/Factory Commander-Gladiator | -5/Extension Commander-Gladiator | -5/Cetus Scavenger-Gladiator | -5/Archives Scavenger-Gladiator | -5/Hub_04(d) Scavenger-Gladiator | -4/Factory Scavenger-Gladiator | -4/Waste Scavenger-Gladiator | -4/Factory Hauler-Gladiator | -4/DSF Hauler-Gladiator | -3/Research Resources | -11 -10 -10 -9 -9 -7 -6 -6 -6 -6 -5 -5 -5 -5 -5 -5 -4 -4 -4 -4 -3 ----------- Run | Yrd Mat Min Mat Min Zio Pro Fac Low Dat Pro Fac Ext Cet Arc Hub Fac Was Fac DSF Res Matter Collected 6791 | 330 582 18 626 . 100 146 275 173 . 938 423 681 392 186 64 172 590 . 263 832 Remotely 715 | 255 460 . . . . . . . . . . . . . . . . . . . Salvage Created 13205 | 151 706 175 852 . . . 1140 157 . 1141 935 711 552 286 1074 733 504 . . 4088 Parts 576 | 11 49 22 46 . . . 18 4 . 41 37 38 32 21 43 33 7 . . 174 Haulers Intercepted 8 | . . . 4 . . . . . . . . . . . . 2 . . . 2 Recyclers Shooed 8 | 1 4 . . . . . . . . . 2 . . . . 1 . . . . Parts Field Recycled . | . . . . . . . . . . . . . . . . . . . . . Retrieved Matter . | . . . . . . . . . . . . . . . . . . . . . Parts Self-Destructed 83 | . . . . . 2 3 . 12 . 66 . . . . . . . . . . Prevented 65 | . . . . . . 11 . . . 54 . . . . . . . . . . Parts Restored . | . . . . . . . . . . . . . . . . . . . . . Kills | -11 -10 -10 -9 -9 -7 -6 -6 -6 -6 -5 -5 -5 -5 -5 -5 -4 -4 -4 -4 -3 ------- Run | Yrd Mat Min Mat Min Zio Pro Fac Low Dat Pro Fac Ext Cet Arc Hub Fac Was Fac DSF Res Combat Hostiles Destroyed 157 | . 12 7 18 . . . 21 2 . 20 10 8 3 . 4 6 3 . . 43 Melee 75 | . . . 4 . . . 9 . . 15 8 6 . . 2 2 . . . 29 Guns 27 | . 12 . 12 . . . . . . . . . . . . . 3 . . . AOE 18 | . . 7 . . . . . . . . 1 . . . 2 3 . . . 5 Classes Destroyed 23 | 3 5 . 3 . . . 2 1 . 3 . . 1 . 2 . 2 . . 1 Worker 30 | 1 8 1 2 . . . 1 . . . 2 . . . 5 5 . . . 5 Builder 14 | . 1 2 1 . . . 1 . . . . 1 . . . 1 . . . 7 Tunneler 8 | 3 . 2 . . . . . . . . . . . . 3 . . . . . Hauler 8 | . . . 4 . . . . . . . . . . . . 2 . . . 2 Recycler 11 | 1 1 . . . . . 1 . . . 2 1 . . 2 . . . . 3 Mechanic 2 | . 1 . . . . . . . . . . . . . . . . . . 1 Operator 11 | . 1 . . . . . . . . . . 1 . 8 . . . . . 1 Watcher 6 | . . . 1 . . . 1 . . . 1 1 2 . . . . . . . Swarmer 22 | . 3 3 6 . . . 3 . . 5 . . . . 1 . . . . 1 Cutter 2 | . . . . . . . . . . . . . . . 2 . . . . . Grunt 64 | . 9 4 9 . . . 11 . . 9 3 2 . . . . . . . 17 Brawler 4 | . . . . . . . . . . 1 1 . . . . . 1 . . 1 Duelist 1 | . . . . . . . . . . . . . . . . . . . . 1 Sentry 13 | . . . 3 . . . 3 . . 1 2 3 . . . . . . . 1 Specialist 3 | . . . . . . . . . . 1 . . . . . . . . . 2 Hunter 16 | . . . . . . . 1 . . . . . . . 1 5 1 . . 8 Programmer 19 | . . . . . . . 3 . . 2 4 . . . . 1 . . . 9 Behemoth 5 | . . . . . . . . . . 1 . 2 . . . . . . . 2 Compactor 1 | . . . . . . . . . . . . . . . . . 1 . . . Cetus Guard 3 | . . . . . . . . . . . . . 3 . . . . . . . Enhanced Grunt 2 | . . . . . . . . . . . . . . . 2 . . . . . Z-Courier 1 | . . . . . . . . . . . . . . . 1 . . . . . Z-Light 4 | . . . . . . . . . . . . . . . 3 . . . . 1 Decomposer 1 | . . . . . . . . 1 . . . . . . . . . . . . Thug 2 | . . . . . . . . . . . . 1 1 . . . . . . . Martyr 1 | . . . . . . . . . . . . . . . . . 1 . . . Guerrilla 2 | . . . . . . . . . . . . . 1 . 1 . . . . . Fireman 1 | . . . . . . . . . . . . . 1 . . . . . . . Mutant 2 | . . . . . . . . 2 . . . . . . . . . . . . Best Kill Streak 11 | 5 6 7 8 . . . 4 1 . 6 4 2 4 3 11 7 3 . . 10 Combat Bots Only 7 | . 3 4 5 . . . 4 1 . 6 2 1 3 . 2 3 3 . . 7 Max Kills in Single Turn 13 | 1 1 3 1 . . . 1 1 . 1 2 1 2 1 13 2 1 . . 6 Gunslinging . | . . . . . . . . . . . . . . . . . . . . . Exploded 4 | . . 2 . . . . . . . . 1 . . . 2 1 . . . 4 Melee 1 | . . . 1 . . . 1 . . 1 1 1 . . 1 1 . . . 1 Uniques/NPCs Destroyed 1 | . . . . . . . . . . . . . 1 . . . . . . . A7 (-5/Cetus) Combat | -11 -10 -10 -9 -9 -7 -6 -6 -6 -6 -5 -5 -5 -5 -5 -5 -4 -4 -4 -4 -3 -------- Run | Yrd Mat Min Mat Min Zio Pro Fac Low Dat Pro Fac Ext Cet Arc Hub Fac Was Fac DSF Res Hostile Shots Fired 1762 | . 74 17 144 . 12 6 195 27 . 218 78 53 21 . 10 49 1 . . 857 Missed 511 | . 18 7 39 . 4 1 47 8 . 71 17 16 7 . 5 16 . . . 255 Hits 1251 | . 56 10 105 . 8 5 148 19 . 147 61 37 14 . 5 33 1 . . 602 Melee 16 | . . . . . . . . . . 3 . . . . . . 1 . . 12 Projectile 1235 | . 56 10 105 . 8 5 148 19 . 144 61 37 14 . 5 33 . . . 590 Critical Strikes 58 | . . 1 2 . . 1 5 . . 3 6 4 2 . . 3 . . . 31 Actively Blocked 3 | . . . . . . . . . . . . . . . . . . . . 3 Part Disruptions 3 | . . . . . . . . . . . 1 . . . . . . . . 2 Damage Taken 21819 | . 626 175 1221 . 160 95 2299 286 . 2272 1156 545 317 . 413 664 62 . . 11528 Core 1513 | . 135 50 213 . . 34 84 13 . 170 . 87 31 . 48 . . . . 648 Absorbed by Shields 970 | . . . . . . . . . . 274 156 279 151 . . 110 . . . . Redirected to Shielding 247 | . . . 93 . . . . . . . . . . . . . . . . 154 Regen/Repaired (Parts) 1277 | . . . . . . . 228 . . 481 . . 106 117 39 148 15 . . 143 Core Remaining (%) 69 | 100 . 26 . . . 38 . . . 68 . . . . 83 . . . 100 . Volleys Fired 254 | 10 96 14 42 . . . . . . 12 3 20 13 . 3 12 15 . . 14 Largest 2 | 2 2 2 2 . . . . . . 1 1 1 1 . 1 1 1 . . 1 Hottest 88 | 40 60 60 60 . . . . . . 10 46 46 88 . 46 46 30 . . 46 Shots Fired 402 | 20 190 17 84 . . . . . . 12 3 20 12 . 3 12 15 . . 14 Gun 315 | 20 190 6 84 . . . . . . . . . . . . . 15 . . . Cannon 3 | . . . . . . . . . . . . . 3 . . . . . . . Launcher 50 | . . 11 . . . . . . . . 3 3 7 . 3 9 . . . 14 Special 34 | . . . . . . . . . . 12 . 17 2 . . 3 . . . . Kinetic 302 | 20 185 3 79 . . . . . . . . . . . . . 15 . . . Thermal 13 | . 5 3 5 . . . . . . . . . . . . . . . . . Explosive 11 | . . 11 . . . . . . . . . . . . . . . . . . Electromagnetic 42 | . . . . . . . . . . . 3 3 10 . 3 9 . . . 14 Robot Hit Streak 15 | 8 13 7 15 . . . . . . 8 1 10 11 . . 5 7 . . 4 Robot Miss Streak 6 | 2 6 1 3 . . . . . . 2 1 1 2 . . 1 1 . . 1 Penetration Max . | . . . . . . . . . . . . . . . . . . . . . Secondary Targets 4 | . 2 . 2 . . . . . . . . . . . . . . . . . Max Gunslinging Chain 1 | . 1 . 1 . . . . . . . . . . . . . . . . . Shots Hit Robots 651 | 13 120 5 89 . . . 66 6 . 53 44 46 19 10 5 23 15 . . 137 Core Hits 302 | 6 40 19 28 . . . 12 2 . 16 21 13 16 6 23 18 8 . . 74 Critical Kills 5 | . . . 1 . . . 2 1 . 1 . . . . . . . . . . Critical Parts Destroyed 19 | . 1 . 2 . . . 9 2 . 5 . . . . . . . . . . Critical Strikes 57 | . 1 . 3 . . . 13 3 . 8 4 3 1 . . 2 . . . 19 Destroy 1 | . 1 . . . . . . . . . . . . . . . . . . . Smash 24 | . . . 3 . . . 12 3 . 6 . . . . . . . . . . Sever 9 | . . . . . . . . . . . 2 3 1 . . 2 . . . 1 Impale 23 | . . . . . . . 1 . . 2 2 . . . . . . . . 18 Melee Attacks 573 | . 1 . 44 . . . 100 9 . 71 62 40 14 12 9 24 5 . . 182 Impact 166 | . . . 32 . . . 93 9 . 32 . . . . . . . . . . Slashing 191 | . 1 . 12 . . . . . . 14 34 34 14 12 9 21 5 . . 35 Piercing 216 | . . . . . . . 7 . . 25 28 6 . . . 3 . . . 147 Sneak Attacks 69 | . 1 . 2 . . . 6 1 . . 7 6 14 10 3 4 2 . . 13 Combat Hostiles 2 | . . . . . . . 1 . . . . . . . . . . . . 1 Follow-up Attacks 85 | . . . 3 . . . 9 . . 8 6 4 3 . . 6 . . . 46 Damage Inflicted 30299 | 152 1261 738 2058 . . . 3127 360 . 1926 2350 1545 1815 1089 2500 2096 479 . . 8803 Guns 2479 | 152 1204 23 799 . . . . . . . . . . . . . 301 . . . Cannons 133 | . . . . . . . . . . . . . 133 . . . . . . . Explosions 7738 | . . 715 . . . . . . . . 432 141 790 . 2176 1099 . . . 2385 Melee 19931 | . 57 . 1259 . . . 3127 360 . 1908 1918 1404 892 1089 324 997 178 . . 6418 Ramming 18 | . . . . . . . . . . 18 . . . . . . . . . . Kinetic 2371 | 152 1172 . 746 . . . . . . . . . . . . . 301 . . . Thermal 880 | . 32 23 53 . . . . . . . 69 . . . . 305 . . . 398 Explosive 715 | . . 715 . . . . . . . . . . . . . . . . . . Electromagnetic 6384 | . . . . . . . . . . . 363 141 923 . 2176 794 . . . 1987 Impact 5669 | . . . 1167 . . . 3011 360 . 1131 . . . . . . . . . . Slashing 7416 | . 57 . 92 . . . . . . 298 1315 1302 892 1089 324 889 178 . . 980 Piercing 6846 | . . . . . . . 116 . . 479 603 102 . . . 108 . . . 5438 Highest Corruption 24 | . 1 1 . . . 15 7 9 9 24 11 11 12 12 2 4 4 4 4 10 Average Corruption 10 | . 1 1 . . . 5 5 8 9 20 7 11 11 8 1 3 4 4 4 8 Corruption Purged 16 | . . . . . . . . . . . . . . 16 . . . . . . Corruption Blocked 20 | . . . . . . . . . . . . . . . . . . . . 20 Effects 500 | . 1 . . . . 18 48 43 2 181 22 45 27 10 . 11 29 3 9 51 Message Errors 119 | . . . . . . 5 14 12 . 52 1 6 9 2 . 2 4 . 3 9 Matter Fused 124 | . 1 . . . . 2 10 15 1 43 5 15 5 2 . 1 8 2 1 13 Heat Flow Errors 59 | . . . . . . 3 4 3 . 23 3 7 2 2 . . 2 . 3 7 Energy Discharges 69 | . . . . . . 4 6 5 . 19 3 8 6 2 . 2 6 . 1 7 Parts Rejected 1 | . . . . . . . . . . . . 1 . . . . . . . . Parts Fused 9 | . . . . . . 1 2 . . 3 . . 1 1 . . . . . 1 Data Loss (minor) 78 | . . . . . . 2 7 4 1 24 10 6 3 1 . 6 6 1 1 6 Data Loss (major) 22 | . . . . . . 1 3 3 . 6 . 2 . . . . 1 . . 6 Alerts 18 | . . . . . . . 2 1 . 11 . . . . . . 2 . . 2 Weapon Failures 1 | . . . . . . . . . . . . . 1 . . . . . . . Overload Shots . | . . . . . . . . . . . . . . . . . . . . . Overflow Damage 3284 | . . . 226 . . . 804 148 . 362 267 78 14 269 163 115 33 . . 805 Projectiles . | . . . . . . . . . . . . . . . . . . . . . Explosions 340 | . . . . . . . . . . . 18 . 5 . 119 22 . . . 176 Melee 2944 | . . . 226 . . . 804 148 . 362 249 78 9 269 44 93 33 . . 629 Knockbacks 26 | . . . 9 . . . 15 . . 2 . . . . . . . . . . Impact 24 | . . . 7 . . . 15 . . 2 . . . . . . . . . . Kinetic . | . . . . . . . . . . . . . . . . . . . . . Secondary 2 | . . . 2 . . . . . . . . . . . . . . . . . Self-Inflicted Damage 795 | . . 67 . . . . . . . . . . 58 . 191 68 . . . 411 Shots 23 | . . 4 . . . . . . . . . . 3 . 2 3 . . . 11 Rammed 1 | . . . . . . . . . . 1 . . . . . . . . . . Targets Rammed 3 | . . . . . . . . . . 3 . . . . . . . . . . Kicked . | . . . . . . . . . . . . . . . . . . . . . Crushed 2 | . . . . . . . . . . 2 . . . . . . . . . . Highest Temperature 341 | . 56 26 23 . . 256 241 229 . 269 223 270 286 228 24 52 262 . 306 341 Average Temperature 92 | . 11 12 8 . . 106 84 91 . 97 74 95 101 99 10 20 106 . 104 124 Received Heat Transfer 3617 | . 309 66 615 . . 57 609 9 . 280 134 79 30 . 36 18 . . . 1375 Effects 6 | . . . . . . . 2 . . . . . . . . . . . 2 2 Shutdowns 1 | . . . . . . . . . . . . . . . . . . . 1 . Energy Bleed 2 | . . . . . . . . . . . . . . . . . . . 1 1 Interference 3 | . . . . . . . 2 . . . . . . . . . . . . 1 Siege Activations . | . . . . . . . . . . . . . . . . . . . . . Martial Activations . | . . . . . . . . . . . . . . . . . . . . . Shielding Activations . | . . . . . . . . . . . . . . . . . . . . . Robots Disrupted . | . . . . . . . . . . . . . . . . . . . . . Combat Hostiles . | . . . . . . . . . . . . . . . . . . . . . Robots Corrupted 36 | . . . 2 . . . 15 2 . 4 1 . 3 . 1 1 . . . 7 Combat Hostiles 32 | . . . 2 . . . 12 2 . 4 1 . 3 . . 1 . . . 7 Parts Fried 79 | . . . 7 . . . 22 . . 3 1 . 4 . 20 6 . . . 16 Impact Corruptions 52 | . . . 8 . . . 32 3 . 9 . . . . . . . . . . Robots Melted . | . . . . . . . . . . . . . . . . . . . . . Combat Hostiles . | . . . . . . . . . . . . . . . . . . . . . Parts Melted 2 | . . . 1 . . . . . . . . 1 . . . . . . . . Heat Transferred 1050 | . 75 50 125 . . . . . . . 150 . . . . 250 . . . 400 Parts Sabotaged . | . . . . . . . . . . . . . . . . . . . . . Parts Stolen . | . . . . . . . . . . . . . . . . . . . . . Parts Stripped . | . . . . . . . . . . . . . . . . . . . . . Power Chain Reactions 8 | . . . . . . . . . . . 1 . 1 . 2 1 . . . 3 Alert | -11 -10 -10 -9 -9 -7 -6 -6 -6 -6 -5 -5 -5 -5 -5 -5 -4 -4 -4 -4 -3 ------- Run | Yrd Mat Min Mat Min Zio Pro Fac Low Dat Pro Fac Ext Cet Arc Hub Fac Was Fac DSF Res Maximum Alert Level 4 | . . 1 . . . . . . . . . 2 2 . 4 3 1 . 2 3 Low Security (%) 64 | 100 100 91 100 100 . . 100 . . . 100 47 . 100 13 . 75 100 43 . Level 1 19 | . . 8 . . . . . . . . . 30 90 . 44 . 24 . 41 51 Level 2 11 | . . . . . . . . . . . . 22 9 . 25 60 . . 14 34 Level 3 4 | . . . . . . . . . . . . . . . 6 39 . . . 13 Level 4 . | . . . . . . . . . . . . . . . 11 . . . . . Level 5 . | . . . . . . . . . . . . . . . . . . . . . High Security . | . . . . . . . . . . . . . . . . . . . . . Max Security . | . . . . . . . . . . . . . . . . . . . . . Sterilizations 1 | . . . . . . . . . . . . . . . . . . . 1 . Peak Influence 1514 | 15 165 234 195 47 . . 113 . . . 115 560 432 176 1514 829 315 3 446 952 Initial 728 | . 3 61 87 47 . . . . . . 63 18 286 96 . 728 287 . 2 250 Average 199 | 3 61 108 122 34 . . 48 . . . 32 247 335 42 498 702 99 . 236 450 Influence Increases 9631 | 25 388 273 596 . . 331 642 124 . 655 383 1154 356 270 1728 436 70 3 524 1673 Destroy 0b10 Robot/C 4700 | . 240 140 360 . . 220 420 80 . 480 240 520 160 80 320 160 40 . 220 1020 Destroy 0b10 Robot/NC 510 | 25 60 25 40 . . . 20 . . 5 30 30 10 40 90 40 . . . 95 Destroy Leader 818 | . 50 30 90 . . 20 112 10 . 40 54 44 . . 72 54 . . 40 202 Allied During Kill 1869 | . . . . . . 76 . 4 . 25 8 517 170 120 470 19 8 . 260 192 Successful Hack 38 | . 7 . 13 . . . . . . . . . . . . . . 3 . 15 Select Force Hacks 60 | . 30 . 30 . . . . . . . . . . . . . . . . . Disable Machine 435 | . . . 15 . . . 30 . . . 15 . . 30 270 45 . . . 30 Destroy Structure 781 | . 1 48 3 . . . 15 . . . 36 28 16 . 506 58 22 . 4 44 Lose Combat Pursuer 420 | . . 30 45 . . 15 45 30 . 105 . 15 . . . 60 . . . 75 Influence Decreases 8700 | 20 236 206 697 106 17 331 589 177 . 555 445 680 628 510 240 1102 892 . 81 1188 Entered New Map 2267 | . 2 96 137 76 17 . . 20 . . 37 20 226 144 . 760 535 . 1 196 Time Decay 5022 | 20 214 100 470 30 . 271 519 117 . 460 372 460 302 266 150 302 357 . . 612 Lost Part 406 | . 20 10 80 . . . 70 . . 20 16 20 . . . . . . . 170 Lost Ally 1005 | . . . 10 . . 60 . 40 . 75 20 180 100 100 90 40 . . 80 210 Squads Dispatched 52 | . 4 1 4 . . . 7 . . 1 2 3 . . 4 6 . 1 2 17 Investigation 16 | . 2 1 3 . . . 3 . . 1 . 1 . . . 2 . 1 . 2 Extermination 10 | . . . . . . . 3 . . . 2 . . . . 1 . . . 4 Reinforcement 22 | . 2 . 1 . . . 1 . . . . 2 . . 4 2 . . 2 8 Assault 1 | . . . . . . . . . . . . . . . . 1 . . . . Garrison 3 | . . . . . . . . . . . . . . . . . . . . 3 Intercept . | . . . . . . . . . . . . . . . . . . . . . Searches Triggered . | . . . . . . . . . . . . . . . . . . . . . Construction Impeded 3 | . . . . . . . . . . . . 1 . . . 1 . . . 1 Haulers Reinforced 3 | . . . . . . . 1 . . . . . . . . 1 . . . 1 Active Scanning Responses . | . . . . . . . . . . . . . . . . . . . . . Cargo Convoy Interrupts . | . . . . . . . . . . . . . . . . . . . . . Stealth | -11 -10 -10 -9 -9 -7 -6 -6 -6 -6 -5 -5 -5 -5 -5 -5 -4 -4 -4 -4 -3 --------- Run | Yrd Mat Min Mat Min Zio Pro Fac Low Dat Pro Fac Ext Cet Arc Hub Fac Was Fac DSF Res Distress Signals 23 | . 4 . 2 . . . 1 . . . 1 4 2 . 3 3 . . . 3 Communications Jammed 5 | . . . . . . . . . . . . . . . . . . . . 5 Distress Signals 3 | . . . . . . . . . . . . . . . . . . . . 3 Times Spotted 313 | . 21 9 30 . 1 10 32 6 . 32 20 28 8 4 21 20 8 . 1 62 Peak Tracking Total 10 | . 3 4 7 . 1 7 4 4 . 5 4 4 5 1 5 8 2 . 1 10 Tactical Retreats 20 | . . 1 3 . . 1 2 1 . 6 . 1 . . . 1 1 . . 3 Traps | -11 -10 -10 -9 -9 -7 -6 -6 -6 -6 -5 -5 -5 -5 -5 -5 -4 -4 -4 -4 -3 ------- Run | Yrd Mat Min Mat Min Zio Pro Fac Low Dat Pro Fac Ext Cet Arc Hub Fac Was Fac DSF Res Traps Triggered 9 | . 1 . 1 . . . 1 1 . . 1 1 . . . 2 . . . 1 Indirectly 2 | . . . . . . . . . . . . . . . . 1 . . . 1 Trap Hack Attempts . | . . . . . . . . . . . . . . . . . . . . . Triggered . | . . . . . . . . . . . . . . . . . . . . . Disarmed . | . . . . . . . . . . . . . . . . . . . . . Reprogrammed . | . . . . . . . . . . . . . . . . . . . . . Reused . | . . . . . . . . . . . . . . . . . . . . . Traps Extracted . | . . . . . . . . . . . . . . . . . . . . . Installed . | . . . . . . . . . . . . . . . . . . . . . Triggered . | . . . . . . . . . . . . . . . . . . . . . Machines | -11 -10 -10 -9 -9 -7 -6 -6 -6 -6 -5 -5 -5 -5 -5 -5 -4 -4 -4 -4 -3 ---------- Run | Yrd Mat Min Mat Min Zio Pro Fac Low Dat Pro Fac Ext Cet Arc Hub Fac Was Fac DSF Res Machines Disabled 31 | . . . 1 . . . 2 2 . . 1 . . 2 18 3 . . . 2 Max in Single Turn 16 | . . . 1 . . . 1 1 . . 1 . . . 16 1 . . . 1 Network Hub 2 | . . . . . . . . . . . . . . . 2 . . . . . Machines Repaired . | . . . . . . . . . . . . . . . . . . . . . Machines Dismantled . | . . . . . . . . . . . . . . . . . . . . . Machines Sabotaged . | . . . . . . . . . . . . . . . . . . . . . Overloaded Fab Kills . | . . . . . . . . . . . . . . . . . . . . . Hacking | -11 -10 -10 -9 -9 -7 -6 -6 -6 -6 -5 -5 -5 -5 -5 -5 -4 -4 -4 -4 -3 --------- Run | Yrd Mat Min Mat Min Zio Pro Fac Low Dat Pro Fac Ext Cet Arc Hub Fac Was Fac DSF Res Machines Accessed 33 | . 2 1 8 . . . 4 . 4 3 4 . . . . 2 . 2 . 3 Terminals 11 | . 1 1 6 . . . . . . 1 1 . . . . . . 1 . . Fabricators 5 | . . . . . . . . . . . 2 . . . . 1 . 1 . 1 Repair Stations 4 | . . . 1 . . . 2 . . 1 . . . . . . . . . . Recycling Units 6 | . 1 . 1 . . . 1 . . 1 . . . . . 1 . . . 1 Scanalyzers 2 | . . . . . . . 1 . . . . . . . . . . . . 1 Garrison Access 1 | . . . . . . . . . . . 1 . . . . . . . . . Total Hacks 99 | . 5 4 18 . . . 8 . 27 6 6 . . . . 7 . 5 . 13 Successful 57 | . 2 . 5 . . . 3 . 27 3 1 . . . . 3 . 5 . 8 Failed 41 | . 3 4 13 . . . 5 . . 3 5 . . . . 4 . . . 4 Catastrophic 9 | . . 1 3 . . . 2 . . . 1 . . . . 2 . . . . Database Lockouts 1 | . . . . . . . . . . . . . . . . . . . . 1 Manual 108 | . 5 4 15 . 1 . 31 . . 2 12 11 1 . 3 11 . 1 . 11 Terminals 25 | . 3 4 14 . . . . . . 1 2 . . . . . . 1 . . Fabricators 17 | . . . . . . . . . . . 3 . . . . 3 . 4 . 7 Repair Stations 7 | . . . 3 . . . 2 . . 2 . . . . . . . . . . Recycling Units 13 | . 2 . 1 . . . 2 . . 3 . . . . . 4 . . . 1 Scanalyzers 9 | . . . . . . . 4 . . . . . . . . . . . . 5 Garrison Access 1 | . . . . . . . . . . . 1 . . . . . . . . . Terminal Hacks 33 | . 1 . 2 . . . . . 27 1 1 . . . . . . 1 . . Record 11 | . . . . . . . . . 11 . . . . . . . . . . . Part Schematic 11 | . 1 . 1 . . . . . 9 . . . . . . . . . . . Robot Schematic 4 | . . . . . . . . . 4 . . . . . . . . . . . Prototype ID Bank 3 | . . . . . . . . . 3 . . . . . . . . . . . Open Door 2 | . . . . . . . . . . 1 1 . . . . . . . . . Open DSF 1 | . . . . . . . . . . . . . . . . . . 1 . . Hauler Manifests 1 | . . . 1 . . . . . . . . . . . . . . . . . Fabricator Hacks 9 | . . . . . . . . . . . . . . . . 2 . 3 . 4 Load Schematic 6 | . . . . . . . . . . . . . . . . 2 . 2 . 2 Build 3 | . . . . . . . . . . . . . . . . . . 1 . 2 Repair Station Hacks 1 | . . . 1 . . . . . . . . . . . . . . . . . Scan Component 1 | . . . 1 . . . . . . . . . . . . . . . . . Recycling Unit Hacks 2 | . . . . . . . . . . 1 . . . . . . . . . 1 Retrieve Components 2 | . . . . . . . . . . 1 . . . . . . . . . 1 Scanalyzer 4 | . . . . . . . 1 . . . . . . . . . . . . 3 Insert Component 2 | . . . . . . . 1 . . . . . . . . . . . . 1 Analyze 1 | . . . . . . . . . . . . . . . . . . . . 1 Retrieve Study 1 | . . . . . . . . . . . . . . . . . . . . 1 Garrison Access Hacks . | . . . . . . . . . . . . . . . . . . . . . Unauthorized Hacks 8 | . 1 . 2 . . . 2 . . 1 . . . . . 1 . 1 . . Terminals 1 | . . . 1 . . . . . . . . . . . . . . . . . Assimilate 1 | . . . 1 . . . . . . . . . . . . . . . . . Fabricators 2 | . . . . . . . . . . . . . . . . 1 . 1 . . Recompile 2 | . . . . . . . . . . . . . . . . 1 . 1 . . Repair Stations 3 | . . . . . . . 2 . . 1 . . . . . . . . . . Patch 3 | . . . . . . . 2 . . 1 . . . . . . . . . . Recycling Units 2 | . 1 . 1 . . . . . . . . . . . . . . . . . Tunnel 2 | . 1 . 1 . . . . . . . . . . . . . . . . . Scanalyzers . | . . . . . . . . . . . . . . . . . . . . . Garrison Access . | . . . . . . . . . . . . . . . . . . . . . Data Cores Recovered 1 | . . . . . . . . . . . . . . . . . . . . 1 Used . | . . . . . . . . . . . . . . . . . . . . . Hacking Detections 22 | . 1 1 7 . . . 2 . . 3 4 . . . . 1 . . . 3 Full Trace Events 6 | . 1 1 1 . . . 1 . . . . . . . . 1 . . . 1 Feedback Events . | . . . . . . . . . . . . . . . . . . . . . Feedback Blocked . | . . . . . . . . . . . . . . . . . . . . . Robot Schematics Acquired 4 | . . . . . . . . . 4 . . . . . . . . . . . Robots Built . | . . . . . . . . . . . . . . . . . . . . . Authchips . | . . . . . . . . . . . . . . . . . . . . . Time . | . . . . . . . . . . . . . . . . . . . . . Total Robot Build Rating . | . . . . . . . . . . . . . . . . . . . . . Part Schematics Acquired 25 | . 1 . 1 . . . 13 . 9 . . . . . . . . . . 1 Parts Built 3 | . . . . . . . . . . . . . . . . . . 1 . 2 Authchips 2 | . . . . . . . . . . . . . . . . . . 1 . 1 Time 169 | . . . . . . . . . . . . . . . . . . 51 . 118 Total Part Build Rating 9 | . . . . . . . . . . . . . . . . . . 1 . 8 Part Studies Acquired 1 | . . . . . . . . . . . . . . . . . . . . 1 Parts Repaired . | . . . . . . . . . . . . . . . . . . . . . Time . | . . . . . . . . . . . . . . . . . . . . . Parts Recycled . | . . . . . . . . . . . . . . . . . . . . . Recycled Matter . | . . . . . . . . . . . . . . . . . . . . . Retrieved Matter . | . . . . . . . . . . . . . . . . . . . . . Retrieved Components 10 | . . . . . . . . . . . . . . . . . . . . 10 Parts Scanalyzed 1 | . . . . . . . 1 . . . . . . . . . . . . . Part Schematics Acquired 1 | . . . . . . . . . . . . . . . . . . . . 1 Parts Damaged 1 | . . . . . . . 1 . . . . . . . . . . . . . Bothacking | -11 -10 -10 -9 -9 -7 -6 -6 -6 -6 -5 -5 -5 -5 -5 -5 -4 -4 -4 -4 -3 ------------ Run | Yrd Mat Min Mat Min Zio Pro Fac Low Dat Pro Fac Ext Cet Arc Hub Fac Was Fac DSF Res Used RIF Installer . | . . . . . . . . . . . . . . . . . . . . . Robots Hacked 1 | . . . . . . . . . . . . . . . . 1 . . . . Non-combat 1 | . . . . . . . . . . . . . . . . 1 . . . . Combat . | . . . . . . . . . . . . . . . . . . . . . Robot Hacks Applied 1 | . . . . . . . . . . . . . . . . 1 . . . . find_chute 1 | . . . . . . . . . . . . . . . . 1 . . . . Relay Couplers Released . | . . . . . . . . . . . . . . . . . . . . . Fabnet Peak Effective % . | . . . . . . . . . . . . . . . . . . . . . Robots Rewired 24 | . . . . . . . . 3 . 7 . 13 . . . 1 . . . . Allies Hacked 2 | . . . . . . . . . . . . . . . . . . . . 2 Hacks Repelled . | . . . . . . . . . . . . . . . . . . . . . Allies | -11 -10 -10 -9 -9 -7 -6 -6 -6 -6 -5 -5 -5 -5 -5 -5 -4 -4 -4 -4 -3 -------- Run | Yrd Mat Min Mat Min Zio Pro Fac Low Dat Pro Fac Ext Cet Arc Hub Fac Was Fac DSF Res Total Allies 84 | . . . 1 . 4 . . 3 . 8 2 33 5 . 3 5 20 . . . Largest Group 22 | . . . 1 . 4 4 . 3 1 6 2 22 21 14 10 3 21 20 19 11 Highest-Rated Group 894 | . . . 10 . 153 153 . 90 27 119 170 736 890 712 701 288 894 844 817 562 Highest-Rated Ally 159 | . . . 10 . 40 40 . 30 27 41 85 159 159 96 96 96 96 96 96 96 Zionite Dispatches 8 | . . . . . . . . . . . 2 3 . . 1 2 . . . . Heavy 1 | . . . . . . . . . . . 1 . . . . . . . . . Light 3 | . . . . . . . . . . . . 1 . . 1 1 . . . . Recon 1 | . . . . . . . . . . . 1 . . . . . . . . . Fire 1 | . . . . . . . . . . . . 1 . . . . . . . . Melee Resupply 1 | . . . . . . . . . . . . . . . . 1 . . . . Hover Resupply 1 | . . . . . . . . . . . . 1 . . . . . . . . Total Orders 37 | . . . . . . . . 2 . 1 . 1 . 1 10 3 . . . 19 STAY 1 | . . . . . . . . . . . . . . . . 1 . . . . ROAM 1 | . . . . . . . . . . . . . . . . . . . . 1 DROP 2 | . . . . . . . . . . . . 1 . . . 1 . . . . COLLECT 1 | . . . . . . . . . . . . . . 1 . . . . . . EXPLORE 22 | . . . . . . . . 1 . 1 . . . . 8 1 . . . 11 RETURN 10 | . . . . . . . . 1 . . . . . . 2 . . . . 7 Ally Attacks 628 | . . . . . . 27 . 17 . 31 8 155 55 26 102 23 45 . 69 70 Total Damage 16944 | . . . . . . 1474 . 458 . 612 639 2888 1162 923 3049 665 1991 . 1471 1612 Kills 109 | . . . . . . 12 . 4 . 4 4 23 7 4 21 2 6 . 14 8 Allies Corrupted 4 | . . . . . . . . . . 1 1 . . . 1 . . . . 1 Allies Melted 1 | . . . . . . . . 1 . . . . . . . . . . . . Intel | -11 -10 -10 -9 -9 -7 -6 -6 -6 -6 -5 -5 -5 -5 -5 -5 -4 -4 -4 -4 -3 ------- Run | Yrd Mat Min Mat Min Zio Pro Fac Low Dat Pro Fac Ext Cet Arc Hub Fac Was Fac DSF Res Active Infowar (turns) 14459 | 8 224 199 482 . . . 1964 1196 134 3633 1121 252 389 1050 309 391 720 119 533 1735 Sensors 12754 | . . . . . . . 1964 1196 134 3633 1121 252 389 1050 309 389 720 119 533 945 Terrain 681 | . . 199 482 . . . . . . . . . . . . . . . . . Structural 292 | . . . . . . . . . . . . . . . . . . . . 292 Seismic 232 | 8 224 . . . . . . . . . . . . . . . . . . . Cloaking 4 | . . . . . . . . . . . . . . . . 2 2 . . . Jamming 1096 | . . . . . . . . . . . . . . . . . . . . 1096 Robot Analysis Total . | . . . . . . . . . . . . . . . . . . . . . Derelict Logs Recovered 5 | . . 1 . . . 1 . 2 . 1 . . . . . . . . . . Drone Launches 22 | . . . . . . . . 1 . 1 . . . . 8 1 . . . 11 Drone Recoveries 16 | . . . . . . . . . . . . . . . 7 . . . . 9 Zionite Intel Received 11 | . . . . . . . 6 . . . 1 1 . . . 1 . . . 2 Main Access 1 | . . . . . . . 1 . . . . . . . . . . . . . Branch Access 1 | . . . . . . . . . . . 1 . . . . . . . . . Emergency Access 1 | . . . . . . . 1 . . . . . . . . . . . . . Component Stockpiles 2 | . . . . . . . 1 . . . . . . . . 1 . . . . Component Schematics 1 | . . . . . . . 1 . . . . . . . . . . . . . Trap Installations 3 | . . . . . . . 1 . . . . 1 . . . . . . . 1 Depthwide Sectors/0 1 | . . . . . . . . . . . . . . . . . . . . 1 Depthwide Sectors/-1 1 | . . . . . . . 1 . . . . . . . . . . . . . Exploration | -11 -10 -10 -9 -9 -7 -6 -6 -6 -6 -5 -5 -5 -5 -5 -5 -4 -4 -4 -4 -3 ------------- Run | Yrd Mat Min Mat Min Zio Pro Fac Low Dat Pro Fac Ext Cet Arc Hub Fac Was Fac DSF Res Turns Passed 24341 | 105 635 205 1197 68 3351 1768 2017 1409 134 3991 1303 1252 664 1297 309 674 1305 119 533 2005 Spaces Moved 10866 | 40 190 108 539 29 1373 701 811 775 79 2091 575 587 276 528 165 330 695 33 248 693 Core 2 | 2 . . . . . . . . . . . . . . . . . . . . Treads 10263 | 33 100 . 141 29 1373 701 811 775 79 2091 575 587 276 528 165 330 695 33 248 693 Legs 5 | 5 . . . . . . . . . . . . . . . . . . . . Wheels 596 | . 90 108 398 . . . . . . . . . . . . . . . . . Hover . | . . . . . . . . . . . . . . . . . . . . . Flight . | . . . . . . . . . . . . . . . . . . . . . Fastest Speed 50 | 50 135 135 100 240 240 245 160 162 162 160 163 161 160 160 160 160 160 160 160 158 Average Speed 179 | 149 165 136 150 240 240 245 167 162 162 163 170 162 163 160 160 160 160 160 163 198 Slowest Speed 320 | 160 320 140 240 240 245 247 248 162 162 166 252 242 244 160 160 160 160 160 250 250 Overloaded Moves . | . . . . . . . . . . . . . . . . . . . . . Propulsion Burnouts . | . . . . . . . . . . . . . . . . . . . . . Robots Hopped . | . . . . . . . . . . . . . . . . . . . . . Potential Cave-ins 1 | . . . . . . . . . . 1 . . . . . . . . . . Cave-ins Triggered 2 | . . . . . . . . . . 2 . . . . . . . . . . Exploration Rate (%) 50 | 3 32 24 34 12 90 91 16 93 69 95 14 74 57 90 52 12 91 1 86 26 Regions Visited 20 Branch Regions 11 Pre-discovered Areas 18 | . 1 1 1 . 1 . 9 . 1 . . . . . . . . . . 4 Known Exits Taken 10 | . . . . . . . 1 1 1 1 1 1 1 1 1 . . 1 . . Unknown Exits Taken 7 | 1 1 1 1 1 1 1 . . . . . . . . . . . . . . Scrap Searched 10 | . . . . . 1 3 . 3 . 3 . . . . . . . . . . Spaces Dug 52 | . . . . . . . 15 . . 4 12 6 . . 2 1 3 . . 9 Terrain Destroyed 501 | . . 70 . . . . 15 . . 4 13 6 7 . 338 26 3 . . 19 Melee 52 | . . . . . . . 15 . . 4 12 6 . . 2 1 3 . . 9 Projectile . | . . . . . . . . . . . . . . . . . . . . . AOE 449 | . . 70 . . . . . . . . 1 . 7 . 336 25 . . . 10 Terrain Rammed . | . . . . . . . . . . . . . . . . . . . . . Walls Destroyed . | . . . . . . . . . . . . . . . . . . . . . Machines Disabled . | . . . . . . . . . . . . . . . . . . . . . Actions | -11 -10 -10 -9 -9 -7 -6 -6 -6 -6 -5 -5 -5 -5 -5 -5 -4 -4 -4 -4 -3 --------- Run | Yrd Mat Min Mat Min Zio Pro Fac Low Dat Pro Fac Ext Cet Arc Hub Fac Was Fac DSF Res Total 14540 | 64 337 146 792 28 1430 759 1293 912 85 2570 803 847 463 974 191 446 870 99 395 1036 Wait 1782 | . 26 20 80 . 11 11 332 96 7 228 93 105 98 388 7 26 98 58 15 83 Move 10847 | 39 189 107 538 28 1372 700 810 774 78 2090 574 586 275 527 164 330 694 32 247 693 Hop . | . . . . . . . . . . . . . . . . . . . . . Pick Up 289 | 4 6 . 40 . 16 16 20 2 . 49 17 9 12 11 . 11 7 2 40 27 Fast Attach 151 | 8 5 2 6 . 3 3 3 . . 15 15 12 14 8 . 8 15 2 21 11 Attach 106 | 1 2 . 14 . 1 1 13 . . 11 7 2 6 6 . 5 2 1 7 27 Detach 19 | 2 1 . . . 1 . . . . 1 1 . . 2 . 2 . . 3 6 Swap 187 | . 5 3 5 . 6 9 11 2 . 31 11 26 9 3 7 16 6 1 2 34 Drop 389 | . 6 . 27 . 20 19 14 2 . 66 27 29 25 19 1 19 28 3 60 24 Fire 254 | 10 96 14 42 . . . . . . 12 3 20 13 . 3 12 15 . . 14 Melee 457 | . 1 . 40 . . . 88 9 . 61 55 34 11 10 9 17 5 . . 117 Ram . | . . . . . . . . . . . . . . . . . . . . . Kick . | . . . . . . . . . . . . . . . . . . . . . Crush 3 | . . . . . . . . . . 3 . . . . . . . . . . Escape Stasis . | . . . . . . . . . . . . . . . . . . . . . Rewire 54 | . . . . . . . . 27 . 3 . 24 . . . . . . . . Trap . | . . . . . . . . . . . . . . . . . . . . . Miscellaneous 2 | . . . . . . . 2 . . . . . . . . . . . . . Route ------- -11/Scrapyard -10/Materials -10/Mines (discovered 2 exits: *Mat / [*Sub]) -9/Materials -9/Mines -7/Zion -6/Proximity Caves -6/Factory (discovered 5 exits: *Fac x4 / *Low) -6/Lower Caves (discovered 2 exits: *Low / *Dat) -6/Data Miner -5/Proximity Caves -5/Factory (discovered 4 exits: Upp x2 / *Ext x2) -5/Extension (discovered 2 exits: *Fac / *Cet) -5/Cetus (discovered 2 exits: *Fac / *Arc) -5/Archives (discovered 3 exits: *Fac / *Hub x2) -5/Hub_04(d) (discovered 3 exits: *Fac x3) -4/Factory -4/Waste -4/Factory -4/DSF -3/Research History --------- Turn | Location | Event 4 | -11/Scrapyard | Discovered new exit (range 16) 106 | -11/Scrapyard | Entered Materials 300 | -10/Materials | Build established: Mutant 709 | -10/Materials | Core integrity fell below 50% 730 | -10/Materials | Discovered new exit (range 9) 741 | -10/Materials | Entered Mines 824 | -10/Mines | Discovered new exit (range 13) 925 | -10/Mines | Discovered new exit (range 7) 946 | -10/Mines | Entered Materials 946 | -9/Materials | Evolved 2 slots: Propulsion x2 1167 | -9/Materials | Build established: Scavenger-Mutant 1694 | -9/Materials | Build established: Mutant 1805 | -9/Materials | Core integrity fell below 50% 2029 | -9/Materials | Build established: Scavenger-Mutant 2099 | -9/Materials | Discovered new exit (range 10) 2143 | -9/Materials | Entered Mines 2144 | -9/Mines | A Derelict revealed a hidden shortcut to a safe place 2211 | -9/Mines | Entered Zion 2394 | -7/Zion | Received a visual enhancement algorithm 2396 | -7/Zion | Ran a visual enhancement algorithm 2439 | -7/Zion | Discovered new exit (range 13) 2711 | -7/Zion | Found Prototype Device 2711 | -7/Zion | Identified Phasing AFG 2791 | -7/Zion | Acquired unknown access codes intercepted by a Zionite 3165 | -7/Zion | Found CR-A16's Pointy Stick 3219 | -7/Zion | Found Prototype Processor 3219 | -7/Zion | Identified Exp. Melee Analysis Suite 3224 | -7/Zion | Found Prototype Processor 3230 | -7/Zion | Found Prototype Processor 3396 | -7/Zion | Found Faulty Exp. Melee Analysis Suite 3512 | -7/Zion | Build established: Scavenger-Gladiator 4020 | -7/Zion | Learned location of Warlord (-5) 4236 | -7/Zion | Met Imprinter 4282 | -7/Zion | Imprinted 4284 | -7/Zion | Declared Zion's savior 5562 | -7/Zion | Entered Proximity Caves 5562 | -6/Proximity Caves | Accompanied by 4 allies 5588 | -6/Proximity Caves | Learned 8 Factory zone layouts 6491 | -6/Proximity Caves | Attracted the attention of an 0b10 checkpoint 7223 | -6/Proximity Caves | Discovered new exit (range 14) 7287 | -6/Proximity Caves | System corruption reached 10% 7330 | -6/Proximity Caves | Entered Factory 7330 | -6/Factory | Evolved 6 slots: Propulsion x2, Utility x4 7331 | -6/Factory | Identified exit to Factory 7755 | -6/Factory | Retrieved Zion intel report: Component Schematics 8015 | -6/Factory | Discovered exit to Factory (range 5) 8069 | -6/Factory | Retrieved Zion intel report: Main Access 8143 | -6/Factory | Retrieved Zion intel report: Emergency Access 8210 | -6/Factory | Retrieved Zion intel report: Depthwide Sectors/-5 8217 | -6/Factory | Discovered new exit (range 10) 8265 | -6/Factory | Identified exit to Lower Caves 8283 | -6/Factory | Retrieved Zion intel report: Trap Installations 8428 | -6/Factory | Retrieved Zion intel report: Component Stockpiles 8724 | -6/Factory | Terminal network hard line cut 9347 | -6/Factory | Entered Lower Caves 9371 | -6/Lower Caves | Encountered a Warlord checkpoint 9382 | -6/Lower Caves | Identified exit to Lower Caves 9573 | -6/Lower Caves | Attacked by a delusional Derelict stockpiling parts 9736 | -6/Lower Caves | Attacked by a delusional Derelict stockpiling Unaware 10414 | -6/Lower Caves | Learned Factory emergency access door positions 10593 | -6/Lower Caves | A Derelict revealed a hidden shortcut to meet someone special 10609 | -6/Lower Caves | Identified exit to Data Miner 10756 | -6/Lower Caves | Entered Data Miner 10756 | -6/Data Miner | Accompanied by 1 ally 10756 | -6/Data Miner | Discovered new exit (range 6) 10787 | -6/Data Miner | Met Data Miner 10816 | -6/Data Miner | Learned location of Section 7 (-2) 10816 | -6/Data Miner | Acquired the access code to Warlord's prototype stash 10844 | -6/Data Miner | Received God Mode back door access code from Data Miner 10880 | -6/Data Miner | Identified exit to Proximity Caves 10890 | -6/Data Miner | Entered Proximity Caves 10890 | -5/Proximity Caves | Accompanied by 1 ally 10892 | -5/Proximity Caves | Greeted by an Infiltrator in a former 0b10 base 11092 | -5/Proximity Caves | Former 0b10 base attacked by MAIN.C 11258 | -5/Proximity Caves | P-80 Master assimilated allied Virus 6d 11280 | -5/Proximity Caves | Learned Factory stockpile data 11303 | -5/Proximity Caves | Lost 4 allies 11320 | -5/Proximity Caves | System corruption reached 10% 11490 | -5/Proximity Caves | 0b10 base defense nominally successful 11551 | -5/Proximity Caves | Crushed by falling debris 11571 | -5/Proximity Caves | Crushed by falling debris 11838 | -5/Proximity Caves | Build established: Scavenger-Mutant 12029 | -5/Proximity Caves | Identified Exp. Signal Interpreter 12030 | -5/Proximity Caves | Identified Spectral Analyzer 12660 | -5/Proximity Caves | Attracted the attention of an 0b10 checkpoint 12851 | -5/Proximity Caves | Spotted B-75 Beast 12967 | -5/Proximity Caves | Revealed the true nature of CR-A16's Pointy Stick 12969 | -5/Proximity Caves | Destroyed B-75 Beast 13048 | -5/Proximity Caves | Build established: Scavenger-Gladiator 13152 | -5/Proximity Caves | Discovered exit to Factory (range 8) 14881 | -5/Proximity Caves | Entered Factory 14881 | -5/Factory | Evolved 2 slots: Power x1, Utility x1 15166 | -5/Factory | Retrieved Zion intel report: Branch Access 15166 | -5/Factory | Identified exit to Upper Caves 15166 | -5/Factory | Identified exit to Extension 15167 | -5/Factory | Zion Recon squad teleported in 15373 | -5/Factory | Found Tesla Bomb Launcher 15378 | -5/Factory | Zion Heavy squad teleported in 15453 | -5/Factory | Found Prototype Protection 15453 | -5/Factory | Identified Zio. Heavy Carapace 15518 | -5/Factory | Found Prototype Protection 15518 | -5/Factory | Identified Zio. Weapon Casing 16117 | -5/Factory | System corruption reached 10% 16165 | -5/Factory | Terminal network hard line cut 16184 | -5/Factory | Entered Extension 16242 | -5/Extension | Zion Light squad teleported in 16298 | -5/Extension | Rescued a captive Derelict 16299 | -5/Extension | Rescued a captive Derelict 16398 | -5/Extension | Rescued a captive Derelict 16415 | -5/Extension | Rescued a captive Derelict 16417 | -5/Extension | Rescued a captive Derelict 16601 | -5/Extension | Rescued a captive Derelict 16610 | -5/Extension | Rescued a captive Derelict 16610 | -5/Extension | Rescued a captive Derelict 16726 | -5/Extension | Lost 6 allies 16730 | -5/Extension | Spotted B-75 Beast 16756 | -5/Extension | Destroyed B-75 Beast 16763 | -5/Extension | Spotted B-75 Beast 16778 | -5/Extension | Destroyed B-75 Beast 16815 | -5/Extension | Lost 6 allies 16937 | -5/Extension | Build established: Commander-Gladiator 17009 | -5/Extension | Rescued A7 17050 | -5/Extension | Retrieved Zion intel report: Trap Installations 17051 | -5/Extension | Zion Fire squad teleported in 17190 | -5/Extension | Rescued a captive Derelict 17202 | -5/Extension | Zion Hover Resupply teleported in 17278 | -5/Extension | Rescued a captive Derelict 17279 | -5/Extension | Rescued a captive Derelict 17322 | -5/Extension | Discovered new exit (range 10) 17324 | -5/Extension | Discovered new exit (range 6) 17344 | -5/Extension | Identified exit to Cetus 17436 | -5/Extension | Entered Cetus 17436 | -5/Cetus | Accompanied by 21 allies (A7) 17438 | -5/Cetus | Attached CPS modules to A7 17441 | -5/Cetus | Acquired a Cetus Manufacturing Module code from A7 17454 | -5/Cetus | Spotted Cetus Guard 17454 | -5/Cetus | Spotted Cetus Guard 17455 | -5/Cetus | Spotted Cetus Guard 17456 | -5/Cetus | Allies destroyed Cetus Guard 17456 | -5/Cetus | Spotted Cetus Guard 17462 | -5/Cetus | Allies destroyed Cetus Guard 17466 | -5/Cetus | Allies destroyed Cetus Guard 17474 | -5/Cetus | Allies destroyed Cetus Guard 17525 | -5/Cetus | Lost 3 allies 17593 | -5/Cetus | Started Cetus Manufacturing Module 17612 | -5/Cetus | Discovered new exit (range 16) 17618 | -5/Cetus | Manufactured an Enhanced Grunt 17643 | -5/Cetus | Manufactured an Enhanced Grunt 17648 | -5/Cetus | Spotted Cetus Guard 17648 | -5/Cetus | Spotted Cetus Guard 17653 | -5/Cetus | Spotted Cetus Guard 17654 | -5/Cetus | Spotted Cetus Guard 17663 | -5/Cetus | Allies destroyed Cetus Guard 17668 | -5/Cetus | Manufactured an Enhanced Grunt 17671 | -5/Cetus | Destroyed Cetus Guard 17671 | -5/Cetus | Destroyed Cetus Guard 17672 | -5/Cetus | Destroyed Cetus Guard 17675 | -5/Cetus | Discovered new exit (range 15) 17684 | -5/Cetus | Scared off Revision 17 17693 | -5/Cetus | Manufactured an Enhanced Grunt 17701 | -5/Cetus | Lost 7 allies 17718 | -5/Cetus | Manufactured an Enhanced Grunt 17820 | -5/Cetus | Murdered A7 17821 | -5/Cetus | Extracted ID and sensor layout for unrecognized location from A7's data core 17840 | -5/Cetus | Found Prototype Protection 17840 | -5/Cetus | Identified Med. Regenerative Plating 17955 | -5/Cetus | Identified exit to Archives 18100 | -5/Cetus | Entered Archives 18100 | -5/Archives | Accompanied by 14 allies 18162 | -5/Archives | Lost 5 allies 18162 | -5/Archives | Discovered new exit (range 15) 18178 | -5/Archives | Discovered new exit (range 16) 18298 | -5/Archives | Discovered new exit (range 15) 18415 | -5/Archives | Build established: Scavenger-Gladiator 18965 | -5/Archives | Identified exit to Hub_04(d) 19397 | -5/Archives | Entered Hub_04(d) 19397 | -5/Hub_04(d) | Accompanied by 9 allies 19418 | -5/Hub_04(d) | Discovered new exit (range 11) 19453 | -5/Hub_04(d) | Zion Light squad teleported in 19545 | -5/Hub_04(d) | Discovered new exit (range 37) 19564 | -5/Hub_04(d) | Discovered new exit (range 64) 19652 | -5/Hub_04(d) | Network Hub disabled 19670 | -5/Hub_04(d) | Spotted Lightning 19672 | -5/Hub_04(d) | Network Hub disabled 19673 | -5/Hub_04(d) | Spotted Lightning 19674 | -5/Hub_04(d) | Spotted Lightning 19704 | -5/Hub_04(d) | Identified exit to Factory 19706 | -5/Hub_04(d) | Entered Factory 19706 | -4/Factory | Evolved 2 slots: Utility x2 19718 | -4/Factory | Lost 10 allies 19995 | -4/Factory | Retrieved Zion intel report: Component Stockpiles 19996 | -4/Factory | Zion Melee Resupply teleported in 20206 | -4/Factory | First assault squad dispatched 20333 | -4/Factory | Zion Light squad teleported in 20380 | -4/Factory | Manually triggered Chute Trap 20380 | -4/Factory | Sucked down chute 20380 | -4/Factory | Entered Waste 20380 | -4/Waste | Met up with 1 ally sucked down the chute earlier 20390 | -4/Waste | 2 allies followed down the chute 20393 | -4/Waste | Spotted C-40 Crusher 20393 | -4/Waste | Spotted C-40 Crusher 20400 | -4/Waste | Spotted C-40 Crusher 20411 | -4/Waste | Allies destroyed C-40 Crusher 20414 | -4/Waste | Allies destroyed C-40 Crusher 20420 | -4/Waste | Allies destroyed C-40 Crusher 20422 | -4/Waste | Spotted C-40 Crusher 20426 | -4/Waste | Spotted C-40 Crusher 20432 | -4/Waste | Allies destroyed C-40 Crusher 20435 | -4/Waste | Destroyed C-40 Crusher 20465 | -4/Waste | Found Prototype Protection 20465 | -4/Waste | Identified Zio. Weapon Casing 20546 | -4/Waste | Spotted C-40 Crusher 20559 | -4/Waste | Allies destroyed C-40 Crusher 20649 | -4/Waste | Discovered new exit (range 12) 20963 | -4/Waste | Identified exit to Factory 21153 | -4/Waste | Warlord forces began an assault 21509 | -4/Waste | Found Adv. Force Booster 21685 | -4/Waste | Entered Factory 21685 | -4/Factory | Accompanied by 20 allies 21765 | -4/Factory | Fabricated Cargo Storage Unit (x1) 21792 | -4/Factory | Identified exit to DSF 21804 | -4/Factory | Entered DSF 21804 | -4/DSF | Accompanied by 19 allies 21805 | -4/DSF | Joined Warlord attack on 0b10 via DSF 21837 | -4/DSF | Additional patrols routed to DSF 21881 | -4/DSF | Lost 3 allies 21966 | -4/DSF | Discovered new exit (range 16) 22080 | -4/DSF | Lost 4 allies 22128 | -4/DSF | Build established: Hauler-Gladiator 22257 | -4/DSF | Sterilization system engaged 22277 | -4/DSF | Ambient heat levels rising (+10) 22292 | -4/DSF | Ambient heat levels rising (+10) 22307 | -4/DSF | Ambient heat levels rising (+10) 22321 | -4/DSF | Identified exit to Research 22322 | -4/DSF | Ambient heat levels rising (+10) 22337 | -4/DSF | Ambient heat levels rising (+10) 22337 | -4/DSF | Entered Research 22337 | -3/Research | Accompanied by 11 allies 22337 | -3/Research | Evolved 2 slots: Propulsion x1, Weapon x1 22398 | -3/Research | Retrieved Zion intel report: Trap Installations 22509 | -3/Research | Retrieved Zion intel report: Depthwide Sectors/-3 22585 | -3/Research | Spotted B-86 Titan 22587 | -3/Research | Destroyed B-86 Titan 22714 | -3/Research | P-80 Master assimilated allied ZP-SFF(z) 22753 | -3/Research | Spotted B-86 Titan 22800 | -3/Research | Destroyed B-86 Titan 22937 | -3/Research | Central database locked down 23019 | -3/Research | Lost 4 parts (2p2n) 23343 | -3/Research | Fabricated Exp. Melee Analysis Suite (x1) 23374 | -3/Research | Fabricated Cargo Storage Unit (x1) 23884 | -3/Research | Terminal network hard line cut 23997 | -3/Research | Garrison activated, responded to threat 24043 | -3/Research | Lost 4 parts (2n2u) 24100 | -3/Research | Destroyed 7 combat bots 24258 | -3/Research | System corruption reached 10% 24314 | -3/Research | Found Quantum Capacitor 24342 | -3/Research | Self-destructed Last Messages --------------- 24252_ Destroyed Imp. Antigrav System. 24252_ Mak. Sword follow-up attack on P-80 Master. 24256_ P-80 Master suffers critical hit (Impale). 24256_ P-80 Master destroyed. 24265_ Acquired 67 matter. 24293_ Acquired Com. HERF Cannon. 24305_ System corrupted: Matter fused (-10). 24314_ Acquired Quantum Capacitor. 24338_ Door malfunctions. 24339_ H-71 Marshal call for reinforcements jammed. 24339_ Penetrated by Slug. 24339_ Slug penetrates Wall. 24340_ X-82 Rainmaker knocked back. 24341_ H-71 Marshal call for reinforcements jammed. 24342_ Arm. Heavy Treads destroyed. 24342_ Slug penetrates Wall. Map ----- +----------------------------------------------------+ | ???????????????##!%[!=!+ ## ! | | ???????????????######### ## | | ???????????????####################### | | ??????????????????????###### ###### | | ?????????????????????????????????## | | ?????????????????????????????????## | | ?????????????????????????????????## | | ?????????????????????????????????## = | | ?????????????????????????????????## * | | ?????????????????????????????????## | | ???????????????????########??????## ! | | ?????????######????# #???##### =[ | | ?????????# =#????# ############ | | ?????????# #????# + %^ [!! | | ?????????# !!###### # ^ %! | | ?????????# ]=*+% + [!* # ^^ == | | ?????????# ![# #### [[%=# ^^ ! | | ?????????# ]=# #######+### ######## | | ?????????# *! + + ] ! %### ######## | | ?????????# =!# # !%! #?# #?????## | | ?????????# !# # = !#?# #?????## | | ?????????###;## # #?# #?????## | | ?????????# # # #?# ??????## | | ?????????# # ######/## ?????## | | ?????????# % ; | !?????## | | ?????????# @;% H ?????## | | ?????????# x/ x Y ?????## | | ?????????# ###;####### ?????## | | ?????????# #???????????#+??????## | | ?????????# #????????????????????? | | ?????????# #????????????????????? | | ?????????######????????????????????? | | ?????????????????????????????????????? | | ?????????????????????????????????????? | | ?????????????????????????????????????? | | ?????????????????????????????????????? | | ?????????????????????????????????????? | | ?????????????????????????????????????? | | ?????????????????????????????????????? | | ?????????????????????????????????????? | | ?????????????????????????????????????? | | ?????????????????????????????????????? | | ?????????????????????????????????????? | | ?????????????????????????????????????? | | ?????????????????????????????????????? | | ?????????????????????????????????????? | | ?????????????????????????????????????? | | ?????????????????????????????????????? | | ?????????????????????????????????????? | | ?????????????????????????????????????? | +----------------------------------------------------+ Best States ------------- Heat Dissipation 46 Energy Generation 45 Energy Capacity 815 Matter Stores 300 Matter Capacity 300 Sight Range 16 Robot Scan Range 15 Terrain Scan Range 16 Terrain Scan Density 10 Jamming Range 14 Power Amplification 20 Corruption Block 19 Armor Coverage 1350 Resistance: TH 15 Propulsion Shielding 33 Weapon Shielding 100 Melee Speed Boost 20 Evasion (%) 45 Melee Accuracy 16 Target Analysis 8 Core Analysis 6 Recoil Reduction 7 Force Boost 40 Offensive Hacking 12 Defensive Hacking 14 Authchip Count 2 Item Schematics ----------------- Huge Storage Unit | -10/Materials | Hacked Cargo Storage Unit | -9/Materials | Hacked ECM Suite | -6/Factory | Z-intel Imp. EM Pulse Cannon | -6/Factory | Z-intel Adv. Heat Sink | -6/Factory | Z-intel Med. Storage Unit | -6/Factory | Z-intel Core Analyzer | -6/Factory | Z-intel Axe | -6/Factory | Z-intel Remote Shield | -6/Factory | Z-intel Imp. System Shield | -6/Factory | Z-intel Launcher Guidance Computer | -6/Factory | Z-intel Imp. Salvage Targeting Computer | -6/Factory | Z-intel EM Disruption Field | -6/Factory | Z-intel Imp. Core Shielding | -6/Factory | Z-intel Imp. Sensor Array | -6/Factory | Z-intel Combat Drone Bay | -6/Data Miner | Free Lgt. Regenerative Plating | -6/Data Miner | Free Cld. Nuclear Pulse Thruster | -6/Data Miner | Free Imp. Thermal Defense Suite | -6/Data Miner | Free Tesla Bomb Launcher | -6/Data Miner | Free Imp. Linear Gravjet | -6/Data Miner | Free Adv. Actuator Array | -6/Data Miner | Free Hvy. Disruptor Cannon | -6/Data Miner | Free Adv. Component Analysis Suite | -6/Data Miner | Free Exp. Melee Analysis Suite | -3/Research | Scanalyzed Robot Schematics ------------------ R-10 Processor | -6/Data Miner | Free L-41 Fighter | -6/Data Miner | Free B-60 Warrior | -6/Data Miner | Free G-50 Soldier | -6/Data Miner | Free Fabricated ------------ Cargo Storage Unit | x1 | -4/Factory | Authchip Exp. Melee Analysis Suite | x1 | -3/Research | Authchip Cargo Storage Unit | x1 | -3/Research Repaired ---------- Nothing Studied --------- Adv. Medium Treads | -3/Research | Hacked Alien Tech Used ----------------- None Achievements -------------- None Challenges ------------ None Game ------ Seed ShadeCobblerGutpuncher Manual? 0 Play Time 02:54:22 Cumulative 570.7 hours Start 2026.08.24 @ 16:43:43 End 2026.08.24 @ 20:13:06 Sessions 1 Manual Loads 0 Difficulty Rogue Special Mode None Game No. 485 Rogue 485 Adventurer 0 Explorer 0 Win Type - Total 16 Types 9/0/3/1/0/0/0/1/0/2 Lore% 68 Gallery% 71 Achievement% 68 Wizard Run 0 Options --------- Layout 1 ASCII 0 Keyboard 0 Movement Mouse Keybinds 0 Fullscreen 2 Font 24/Cog Map View 50x35 Zoom Use 25% Tactical HUD 1 Map Filters NONE Filters NONE Steam 1 RUN: f51fc277-8384-4305-b61c-19a4f1584fa0